fUSD/lending_fUSD_20260506
["ID","MTS","AMOUNT","RATE_DAILY","PERIOD"]
[421719972,1778059844000,-500.0,0.00032603,2]
[421719967,1778059844000,-540.23170004,0.00032603,2]
[421719965,1778059844000,-537.0,0.00032603,2]
[421719966,1778059844000,-537.0,0.00032603,2]
[421719971,1778059844000,-500.0,0.00032603,2]
[421719969,1778059844000,-500.0,0.00032603,2]
[421719968,1778059844000,-500.0,0.00032603,2]
[421719980,1778059844000,-500.0,0.00032603,2]
[421719994,1778059844000,-500.0,0.00032877,2]
[421719956,1778059844000,-500.0,0.00032603,2]
[421720000,1778059844000,-500.0,0.00032999,2]
[421720024,1778059844000,-513.37761461,0.000339,120]
[421720026,1778059844000,-384.14219294,0.000339,120]
[421720021,1778059844000,-11301.3308978,0.00033538,2]
[421720022,1778059844000,-1000.0,0.00033568,5]
[421720032,1778059844000,-760.6688544,0.00034001,60]
[421720030,1778059844000,-3236.31305,0.000339,120]
[421720031,1778059844000,-501.0,0.00033958,9]
[421720036,1778059844000,-159.0,0.0003423,30]
[421720039,1778059844000,-189.0,0.00034231,30]
[421720034,1778059844000,-457.4,0.00034182,7]
[421720033,1778059844000,-947.1177184,0.00034001,60]
[421720037,1778059844000,-269.0,0.0003423,30]
[421720040,1778059844000,-153.0,0.00034231,30]
[421720035,1778059844000,-150.0,0.0003419,2]
[421720041,1778059844000,-170.0,0.00034231,30]
[421720045,1778059844000,-501.73166366,0.00034455,120]
[421720043,1778059844000,-160.45,0.00034247,30]
[421720042,1778059844000,-414.0,0.00034231,30]
[421720044,1778059844000,-1305.0,0.00034448,5]
[421720046,1778059844000,-500.0,0.00034455,2]
[421719999,1778059844000,-253.96,0.0003299,2]
[421720027,1778059844000,-1028.29032096,0.000339,120]
[421720028,1778059844000,-215.47360396,0.000339,120]
[421720038,1778059844000,-920.0,0.0003423,30]
[421720025,1778059844000,-176.59474567,0.000339,120]
[421720029,1778059844000,-3632.83814094,0.000339,120]
[421720008,1778059844000,-165.0,0.00033,14]
[421720004,1778059844000,-1028.29032096,0.00033,120]
[421720006,1778059844000,-3632.83814094,0.00033,120]
[421720002,1778059844000,-176.59474567,0.00033,120]
[421720003,1778059844000,-384.14219294,0.00033,120]
[421720005,1778059844000,-215.47360396,0.00033,120]
[421720007,1778059844000,-3236.31305,0.00033,120]
[421720011,1778059844000,-243.21,0.00033121,5]
[421720010,1778059844000,-501.0,0.00033105,8]
[421720001,1778059844000,-513.37761461,0.00033,120]
[421720013,1778059844000,-159.0,0.0003323,30]
[421720014,1778059844000,-269.0,0.0003323,30]
[421720012,1778059844000,-165.0,0.00033151,30]
[421720017,1778059844000,-153.0,0.00033231,30]
[421720016,1778059844000,-189.0,0.00033231,30]
[421720015,1778059844000,-920.0,0.0003323,30]
[421720018,1778059844000,-170.0,0.00033231,30]
[421720020,1778059844000,-715.79247556,0.00033411,120]
[421720019,1778059844000,-414.0,0.00033231,30]
[421720009,1778059844000,-1000.0,0.00033021,5]
[421720023,1778059844000,-11908.0,0.00033671,2]
[421720089,1778059845000,-500.0,0.00035616,7]
[421720087,1778059845000,-500.0,0.00035616,7]
[421720091,1778059845000,-500.0,0.00035616,7]
[421720088,1778059845000,-500.0,0.00035616,7]
[421720090,1778059845000,-500.0,0.00035616,7]
[421720085,1778059845000,-500.0,0.00035616,7]
[421720092,1778059845000,-500.0,0.00035616,7]
[421720086,1778059845000,-500.0,0.00035616,7]
[421720094,1778059845000,-500.0,0.00035616,7]
[421720084,1778059845000,-500.0,0.00035616,7]
[421720083,1778059845000,-500.0,0.00035616,7]
[421720093,1778059845000,-551.07093672,0.00035616,7]
[421720082,1778059845000,-414.0,0.00035231,30]
[421720107,1778059845000,-151.74680912,0.00035655,7]
[421720097,1778059845000,-150.0,0.00035655,30]
[421720109,1778059845000,-150.0,0.00035655,7]
[421720098,1778059845000,-150.0,0.00035655,7]
[421720108,1778059845000,-150.0,0.00035655,7]
[421720095,1778059845000,-500.0,0.00035616,7]
[421720106,1778059845000,-150.87735315,0.00035655,7]
[421720104,1778059845000,-150.0,0.00035655,7]
[421720102,1778059845000,-150.0,0.00035655,7]
[421720099,1778059845000,-150.0,0.00035655,7]
[421720111,1778059845000,-501.0,0.00035663,11]
[421720110,1778059845000,-150.0,0.00035655,7]
[421720121,1778059845000,-950.0,0.00035915,2]
[421720081,1778059845000,-170.0,0.00035231,30]
[421720096,1778059845000,-591.9658418,0.00035621,5]
[421720073,1778059845000,-11301.3308978,0.00035129,2]
[421720054,1778059845000,-4000.0,0.00034822,60]
[421720069,1778059845000,-1000.0,0.000351,2]
[421720048,1778059845000,-500.0,0.00034455,7]
[421720050,1778059845000,-1500.0,0.00034795,2]
[421720049,1778059845000,-165.0,0.00034521,30]
[421720052,1778059845000,-3034.822,0.00034818,40]
[421720053,1778059845000,-270.718,0.00034818,40]
[421720051,1778059845000,-501.0,0.00034811,10]
[421720047,1778059845000,-512.67718847,0.00034455,120]
[421720112,1778059845000,-150.0,0.00035704,7]
[421720056,1778059845000,-5000.0,0.000349,2]
[421720055,1778059845000,-4927.4593,0.000349,10]
[421720058,1778059845000,-513.37761461,0.00035,120]
[421720057,1778059845000,-183.024081,0.00034904,21]
[421720063,1778059845000,-3632.83814094,0.00035,120]
[421720072,1778059845000,-200.0,0.000351,2]
[421720060,1778059845000,-384.14219294,0.00035,120]
[421720059,1778059845000,-176.59474567,0.00035,120]
[421720061,1778059845000,-1028.29032096,0.00035,120]
[421720064,1778059845000,-3236.31305,0.00035,120]
[421720075,1778059845000,-159.0,0.0003523,30]
[421720076,1778059845000,-269.0,0.0003523,30]
[421720079,1778059845000,-189.0,0.00035231,30]
[421720077,1778059845000,-920.0,0.0003523,30]
[421720080,1778059845000,-153.0,0.00035231,30]
[421720074,1778059845000,-1500.0,0.000352,7]
[421720066,1778059845000,-214.60306816,0.00035,30]
[421720065,1778059845000,-1015.9479407,0.00035,3]
[421720070,1778059845000,-628.0,0.000351,2]
[421720067,1778059845000,-307.0,0.000351,2]
[421720062,1778059845000,-215.47360396,0.00035,120]
[421720113,1778059845000,-150.0,0.00035754,7]
[421720101,1778059845000,-150.83883825,0.00035655,7]
[421720115,1778059845000,-150.0,0.00035853,7]
[421720148,1778059845000,-150.0,0.00036051,7]
[421720150,1778059845000,-150.0,0.0003615,7]
[421720151,1778059845000,-457.4,0.00036153,30]
[421720161,1778059845000,-189.0,0.00036231,30]
[421720157,1778059845000,-150.0,0.000362,7]
[421720154,1778059845000,-274.0,0.00036164,2]
[421720155,1778059845000,-184.0,0.00036164,2]
[421720158,1778059845000,-269.0,0.0003623,30]
[421720159,1778059845000,-920.0,0.0003623,30]
[421720152,1778059845000,-1548.0,0.00036164,5]
[421720156,1778059845000,-150.0,0.00036183,7]
[421720160,1778059845000,-226.0,0.00036231,30]
[421720172,1778059845000,-150.0,0.00036299,7]
[421720149,1778059845000,-150.0,0.000361,7]
[421720164,1778059845000,-414.0,0.00036231,30]
[421720168,1778059845000,-297.01486215,0.00036243,2]
[421720167,1778059845000,-301.98513785,0.00036243,2]
[421720162,1778059845000,-159.00190912,0.00036231,30]
[421720166,1778059845000,-419.0,0.00036243,2]
[421720163,1778059845000,-170.0,0.00036231,30]
[421720171,1778059845000,-150.0,0.00036249,7]
[421720169,1778059845000,-159.0,0.00036243,2]
[421720173,1778059845000,-173.025078,0.00036315,120]
[421720170,1778059845000,-167.0,0.00036247,30]
[421720174,1778059845000,-150.0,0.00036348,7]
[421720175,1778059845000,-19864.41,0.00036362,60]
[421720114,1778059845000,-150.0,0.00035803,7]
[421720177,1778059845000,-150.0,0.00036447,7]
[421720165,1778059845000,-481.0,0.00036243,2]
[421720139,1778059845000,-513.37761461,0.00036,120]
[421720176,1778059845000,-150.0,0.00036398,7]
[421720141,1778059845000,-384.14219294,0.00036,120]
[421720143,1778059845000,-215.47360396,0.00036,120]
[421720119,1778059845000,-150.0,0.00035902,7]
[421720116,1778059845000,-155.0,0.00035862,2]
[421720118,1778059845000,-400.0,0.000359,13]
[421720117,1778059845000,-150.0,0.00035899,2]
[421720122,1778059845000,-950.0,0.00035915,2]
[421720126,1778059845000,-950.0,0.00035915,2]
[421720124,1778059845000,-950.0,0.00035915,2]
[421720125,1778059845000,-950.0,0.00035915,2]
[421720127,1778059845000,-950.0,0.00035915,2]
[421720130,1778059845000,-150.0,0.00035919,7]
[421720128,1778059845000,-950.0,0.00035915,2]
[421720129,1778059845000,-868.0,0.00035915,2]
[421720123,1778059845000,-950.0,0.00035915,2]
[421720120,1778059845000,-950.0,0.00035915,2]
[421720131,1778059845000,-150.0,0.00035952,7]
[421720133,1778059845000,-150.0,0.0003599,2]
[421720142,1778059845000,-1028.29032096,0.00036,120]
[421720138,1778059845000,-200.0,0.0003599,30]
[421720140,1778059845000,-176.59474567,0.00036,120]
[421720137,1778059845000,-154.0,0.0003599,2]
[421720147,1778059845000,-150.0,0.00036001,7]
[421720144,1778059845000,-3632.83814094,0.00036,120]
[421720146,1778059845000,-214.60306816,0.00036,7]
[421720136,1778059845000,-150.0,0.0003599,2]
[421720132,1778059845000,-150.0,0.0003599,2]
[421720135,1778059845000,-150.0,0.0003599,2]
[421720134,1778059845000,-150.0,0.0003599,2]
[421720145,1778059845000,-3236.31305,0.00036,120]
[421720219,1778059846000,-200.0,0.00037265,2]
[421720216,1778059846000,-150.0,0.00037239,7]
[421720218,1778059846000,-200.0,0.00037265,2]
[421720213,1778059846000,-170.0,0.00037231,30]
[421720220,1778059846000,-200.0,0.00037265,2]
[421720215,1778059846000,-150.0,0.00037239,7]
[421720211,1778059846000,-920.0,0.0003723,30]
[421720212,1778059846000,-189.0,0.00037231,30]
[421720210,1778059846000,-269.0,0.0003723,30]
[421720214,1778059846000,-414.0,0.00037231,30]
[421720217,1778059846000,-200.0,0.00037265,2]
[421720199,1778059846000,-150.0,0.00036975,7]
[421720222,1778059846000,-200.0,0.00037265,2]
[421720226,1778059846000,-200.0,0.00037306,2]
[421720231,1778059846000,-300.0,0.00037478,2]
[421720227,1778059846000,-150.0,0.00037338,7]
[421720228,1778059846000,-501.0,0.00037369,13]
[421720230,1778059846000,-150.0,0.00037438,7]
[421720225,1778059846000,-150.0,0.00037289,7]
[421720229,1778059846000,-150.0,0.00037388,7]
[421720224,1778059846000,-159.0,0.00037265,2]
[421720223,1778059846000,-200.0,0.00037265,2]
[421720232,1778059846000,-300.0,0.00037478,2]
[421720234,1778059846000,-300.0,0.00037478,2]
[421720233,1778059846000,-300.0,0.00037478,2]
[421720209,1778059846000,-150.0,0.0003719,7]
[421720221,1778059846000,-200.0,0.00037265,2]
[421720201,1778059846000,-372.11,0.00036986,120]
[421720191,1778059846000,-150.0,0.00036711,7]
[421720203,1778059846000,-500.0,0.00037006,30]
[421720179,1778059846000,-212.39,0.00036457,2]
[421720178,1778059846000,-150.0,0.00036447,7]
[421720180,1778059846000,-150.0,0.00036497,7]
[421720181,1778059846000,-501.0,0.00036516,12]
[421720182,1778059846000,-150.0,0.00036546,7]
[421720183,1778059846000,-150.0,0.00036596,7]
[421720184,1778059846000,-500.0,0.00036633,2]
[421720185,1778059846000,-275.67,0.00036633,7]
[421720186,1778059846000,-150.0,0.00036645,30]
[421720188,1778059846000,-150.0,0.00036645,7]
[421720189,1778059846000,-150.0,0.00036645,7]
[421720190,1778059846000,-150.0,0.00036695,7]
[421720204,1778059846000,-150.0,0.00037041,7]
[421720192,1778059846000,-11301.3308978,0.00036719,2]
[421720187,1778059846000,-150.0,0.00036645,7]
[421720194,1778059846000,-150.0,0.00036794,7]
[421720195,1778059846000,-300.12,0.000368,90]
[421720196,1778059846000,-150.0,0.00036843,7]
[421720197,1778059846000,-150.0,0.00036893,7]
[421720198,1778059846000,-150.0,0.00036942,7]
[421720200,1778059846000,-218.51,0.00036986,120]
[421720205,1778059846000,-150.0,0.00037091,7]
[421720208,1778059846000,-150.0,0.0003714,7]
[421720202,1778059846000,-150.0,0.00036992,7]
[421720207,1778059846000,-3236.31305,0.000371,120]
[421720206,1778059846000,-3632.83814094,0.000371,120]
[421720193,1778059846000,-150.0,0.00036744,7]
[421720236,1778059846000,-300.0,0.00037478,2]
[421720243,1778059846000,-150.0,0.00037586,7]
[421720240,1778059846000,-150.0,0.00037487,7]
[421720286,1778059846000,-500.0,0.00038199,120]
[421720298,1778059846000,-1793.38851355,0.00038227,2]
[421720290,1778059846000,-3236.31305,0.000382,120]
[421720288,1778059846000,-3632.83814094,0.000382,120]
[421720300,1778059846000,-343.40295571,0.00038227,2]
[421720302,1778059846000,-300.0,0.00038227,2]
[421720294,1778059846000,-262.82481083,0.00038201,2]
[421720292,1778059846000,-174.07,0.00038201,2]
[421720296,1778059846000,-501.0,0.00038221,14]
[421720278,1778059846000,-200.0,0.00038155,2]
[421720284,1778059846000,-500.0,0.00038199,7]
[421720280,1778059846000,-150.0,0.0003818,7]
[421720282,1778059846000,-500.0,0.00038199,120]
[421720307,1778059846000,-862.96230178,0.00038227,2]
[421720308,1778059846000,-310.3725982,0.00038227,2]
[421720304,1778059846000,-1145.24599896,0.00038227,2]
[421720315,1778059846000,-300.0,0.00038227,2]
[421720309,1778059846000,-463.08064867,0.00038227,2]
[421720310,1778059846000,-300.0,0.00038227,2]
[421720319,1778059846000,-307.96647755,0.00038227,2]
[421720311,1778059846000,-481.18706949,0.00038227,2]
[421720317,1778059846000,-300.0,0.00038227,2]
[421720313,1778059846000,-451.13853711,0.00038227,2]
[421720320,1778059846000,-483.27319916,0.00038227,2]
[421720322,1778059846000,-309.32134718,0.00038227,2]
[421720324,1778059846000,-1092.83356842,0.00038227,2]
[421720306,1778059846000,-309.07064608,0.00038227,2]
[421720276,1778059846000,-150.0,0.00038131,7]
[421720235,1778059846000,-300.0,0.00037478,2]
[421720272,1778059846000,-150.0,0.00038081,7]
[421720274,1778059846000,-457.4,0.00038125,30]
[421720241,1778059846000,-150.0,0.00037504,7]
[421720237,1778059846000,-300.0,0.00037478,2]
[421720238,1778059846000,-415.0,0.00037478,2]
[421720239,1778059846000,-715.79247556,0.00037487,120]
[421720242,1778059846000,-150.0,0.00037537,7]
[421720245,1778059846000,-150.0,0.00037636,7]
[421720251,1778059846000,-150.0,0.00037735,7]
[421720252,1778059846000,-150.0,0.00037768,7]
[421720255,1778059846000,-150.0,0.00037883,7]
[421720253,1778059846000,-150.0,0.00037784,7]
[421720250,1778059846000,-150.0,0.00037694,2]
[421720249,1778059846000,-150.0,0.00037685,7]
[421720244,1778059846000,-150.0,0.00037636,30]
[421720254,1778059846000,-150.0,0.00037834,7]
[421720259,1778059846000,-150.0,0.00037933,7]
[421720247,1778059846000,-150.0,0.00037636,7]
[421720265,1778059846000,-150.0,0.00038032,7]
[421720269,1778059846000,-152.0,0.0003804,7]
[421720267,1778059846000,-150.0,0.00038032,7]
[421720271,1778059846000,-299.0,0.00038045,2]
[421720256,1778059846000,-604.0,0.00037891,30]
[421720258,1778059846000,-701.0,0.00037891,30]
[421720263,1778059846000,-152.0,0.00038029,7]
[421720257,1778059846000,-570.0,0.00037891,30]
[421720246,1778059846000,-150.0,0.00037636,7]
[421720248,1778059846000,-150.0,0.00037636,7]
[421720261,1778059846000,-150.0,0.00037982,7]
[421720395,1778059847000,-491.85958444,0.00038227,2]
[421720407,1778059847000,-150.0,0.00038329,7]
[421720397,1778059847000,-150.0,0.0003823,7]
[421720399,1778059847000,-760.6688544,0.00038231,120]
[421720405,1778059847000,-178.94,0.00038318,7]
[421720406,1778059847000,-195.26,0.00038318,7]
[421720408,1778059847000,-2052.566,0.00038351,2]
[421720404,1778059847000,-11301.3308978,0.0003831,2]
[421720403,1778059847000,-150.0,0.00038296,7]
[421720401,1778059847000,-947.1177184,0.00038231,120]
[421720402,1778059847000,-150.0,0.00038279,7]
[421720411,1778059847000,-351.70859363,0.0003836,120]
[421720422,1778059847000,-150.0,0.00038626,7]
[421720410,1778059847000,-342.65762743,0.0003836,120]
[421720420,1778059847000,-200.0,0.000386,16]
[421720421,1778059847000,-158.31004264,0.00038626,2]
[421720412,1778059847000,-150.0,0.00038378,7]
[421720413,1778059847000,-150.0,0.00038428,7]
[421720417,1778059847000,-180.78628979,0.00038546,13]
[421720415,1778059847000,-10230.92,0.000385,120]
[421720416,1778059847000,-150.0,0.00038527,7]
[421720419,1778059847000,-150.0,0.00038577,7]
[421720414,1778059847000,-150.0,0.00038477,7]
[421720418,1778059847000,-150.0,0.0003856,7]
[421720423,1778059847000,-150.0,0.00038626,7]
[421720389,1778059847000,-1092.83356842,0.00038227,2]
[421720409,1778059847000,-157.99482979,0.0003836,120]
[421720375,1778059847000,-481.18706949,0.00038227,2]
[421720358,1778059847000,-1793.38851355,0.00038227,2]
[421720379,1778059847000,-300.0,0.00038227,2]
[421720337,1778059847000,-526.86051061,0.00038227,2]
[421720335,1778059847000,-603.45144378,0.00038227,2]
[421720332,1778059847000,-300.0,0.00038227,2]
[421720326,1778059847000,-501.19154709,0.00038227,2]
[421720328,1778059847000,-300.0,0.00038227,2]
[421720339,1778059847000,-1065.13491717,0.00038227,2]
[421720330,1778059847000,-491.85958444,0.00038227,2]
[421720343,1778059847000,-309.13065885,0.00038227,2]
[421720341,1778059847000,-891.9241332,0.00038227,2]
[421720348,1778059847000,-301.2859328,0.00038227,2]
[421720350,1778059847000,-400.26513049,0.00038227,2]
[421720346,1778059847000,-724.83131769,0.00038227,2]
[421720352,1778059847000,-300.0,0.00038227,2]
[421720356,1778059847000,-852.7601399,0.00038227,2]
[421720360,1778059847000,-343.40295571,0.00038227,2]
[421720424,1778059847000,-150.0,0.00038626,7]
[421720354,1778059847000,-300.0,0.00038227,2]
[421720367,1778059847000,-862.96230178,0.00038227,2]
[421720363,1778059847000,-1145.24599896,0.00038227,2]
[421720361,1778059847000,-442.16466097,0.00038227,2]
[421720369,1778059847000,-310.3725982,0.00038227,2]
[421720383,1778059847000,-300.0,0.00038227,2]
[421720371,1778059847000,-463.08064867,0.00038227,2]
[421720373,1778059847000,-429.00475475,0.00038227,2]
[421720381,1778059847000,-300.0,0.00038227,2]
[421720377,1778059847000,-451.13853711,0.00038227,2]
[421720385,1778059847000,-483.27319916,0.00038227,2]
[421720387,1778059847000,-309.32134718,0.00038227,2]
[421720434,1778059847000,-624.0,0.00038646,2]
[421720365,1778059847000,-309.07064608,0.00038227,2]
[421720429,1778059847000,-351.70859363,0.00038634,120]
[421720462,1778059847000,-250.0,0.00039058,2]
[421720460,1778059847000,-250.0,0.00039058,2]
[421720463,1778059847000,-250.0,0.00039058,2]
[421720461,1778059847000,-250.0,0.00039058,2]
[421720464,1778059847000,-250.0,0.00039058,2]
[421720470,1778059847000,-567.892534,0.0003908,120]
[421720465,1778059847000,-250.0,0.00039058,2]
[421720466,1778059847000,-354.0,0.00039058,2]
[421720472,1778059847000,-150.0,0.00039121,7]
[421720471,1778059847000,-150.0,0.00039088,7]
[421720468,1778059847000,-501.0,0.00039074,15]
[421720469,1778059847000,-2000.0,0.0003908,120]
[421720467,1778059847000,-150.0,0.00039072,7]
[421720450,1778059847000,-201.11,0.00038928,120]
[421720473,1778059847000,-155.0,0.00039122,2]
[421720474,1778059847000,-150.0,0.00039171,7]
[421720485,1778059847000,-366.63050985,0.00039399,2]
[421720475,1778059847000,-157.99482979,0.00039182,120]
[421720478,1778059847000,-297.922,0.00039199,30]
[421720479,1778059847000,-1065.68207835,0.00039203,120]
[421720486,1778059847000,-3632.83814094,0.000394,120]
[421720477,1778059847000,-351.70859363,0.00039182,120]
[421720480,1778059847000,-150.0,0.0003922,7]
[421720483,1778059847000,-150.0,0.00039352,7]
[421720476,1778059847000,-342.65762743,0.00039182,120]
[421720481,1778059847000,-150.0,0.0003927,7]
[421720482,1778059847000,-150.0,0.00039319,7]
[421720433,1778059847000,-925.0,0.00038646,2]
[421720484,1778059847000,-150.0,0.00039369,7]
[421720452,1778059847000,-150.0,0.00038973,7]
[421720391,1778059847000,-300.0,0.00038227,2]
[421720449,1778059847000,-150.0,0.00038923,7]
[421720427,1778059847000,-157.99482979,0.00038634,120]
[421720425,1778059847000,-150.0,0.00038626,30]
[421720431,1778059847000,-1268.0,0.00038646,2]
[421720430,1778059847000,-150.0,0.00038646,2]
[421720428,1778059847000,-342.65762743,0.00038634,120]
[421720426,1778059847000,-372.11,0.0003863,120]
[421720432,1778059847000,-1221.0,0.00038646,2]
[421720435,1778059847000,-150.0,0.00038676,7]
[421720436,1778059847000,-150.0,0.00038725,7]
[421720442,1778059847000,-324.37751906,0.00038869,21]
[421720444,1778059847000,-1035.92986597,0.000389,7]
[421720445,1778059847000,-800.0,0.000389,14]
[421720443,1778059847000,-150.0,0.00038874,7]
[421720437,1778059847000,-500.0,0.00038767,2]
[421720454,1778059847000,-2052.566,0.00038991,2]
[421720440,1778059847000,-150.0,0.00038824,7]
[421720453,1778059847000,-8011.36685006,0.00038978,2]
[421720441,1778059847000,-350.0,0.00038867,2]
[421720451,1778059847000,-350.0,0.00038931,2]
[421720457,1778059847000,-150.0,0.00039022,7]
[421720459,1778059847000,-250.0,0.00039058,2]
[421720458,1778059847000,-250.0,0.00039058,2]
[421720448,1778059847000,-351.70859363,0.00038908,120]
[421720456,1778059847000,-200.0,0.00039004,2]
[421720446,1778059847000,-157.99482979,0.00038908,120]
[421720455,1778059847000,-3106.08319247,0.00039,7]
[421720439,1778059847000,-150.0,0.00038824,7]
[421720438,1778059847000,-150.0,0.00038775,7]
[421720447,1778059847000,-342.65762743,0.00038908,120]
[421720515,1778059848000,-150.0,0.00039616,7]
[421720507,1778059848000,-150.0,0.00039567,7]
[421720512,1778059848000,-150.00000001,0.00039616,30]
[421720516,1778059848000,-150.0,0.00039616,7]
[421720521,1778059848000,-50000.0,0.00039621,56]
[421720514,1778059848000,-150.23954053,0.00039616,7]
[421720513,1778059848000,-150.0,0.00039616,7]
[421720520,1778059848000,-186.21316937,0.0003962,2]
[421720524,1778059848000,-151.0,0.00039621,30]
[421720522,1778059848000,-151.0,0.00039621,30]
[421720523,1778059848000,-151.0,0.00039621,30]
[421720519,1778059848000,-150.0,0.0003962,120]
[421720518,1778059848000,-187.52381098,0.00039616,7]
[421720509,1778059848000,-310.0,0.00039589,63]
[421720533,1778059848000,-169.211711,0.00039621,30]
[421720525,1778059848000,-151.0,0.00039621,30]
[421720537,1778059848000,-341.593282,0.00039621,7]
[421720535,1778059848000,-341.593282,0.00039621,7]
[421720517,1778059848000,-150.00000001,0.00039616,7]
[421720502,1778059848000,-1144.07042401,0.0003953,2]
[421720504,1778059848000,-1734.29631444,0.0003953,2]
[421720506,1778059848000,-4691.2245418,0.0003953,2]
[421720488,1778059848000,-150.0,0.00039418,7]
[421720487,1778059848000,-3236.31305,0.000394,120]
[421720489,1778059848000,-157.99482979,0.00039456,120]
[421720499,1778059848000,-24999.0,0.000395,2]
[421720496,1778059848000,-2000.0,0.000395,114]
[421720494,1778059848000,-2000.0,0.000395,114]
[421720490,1778059848000,-342.65762743,0.00039456,120]
[421720495,1778059848000,-2000.0,0.000395,114]
[421720536,1778059848000,-341.593282,0.00039621,7]
[421720492,1778059848000,-150.0,0.00039468,7]
[421720498,1778059848000,-1200.0,0.000395,14]
[421720493,1778059848000,-156.57176173,0.000395,120]
[421720497,1778059848000,-2000.0,0.000395,114]
[421720511,1778059848000,-1600.0,0.000396,14]
[421720501,1778059848000,-354.28279415,0.00039521,2]
[421720500,1778059848000,-150.0,0.00039517,7]
[421720503,1778059848000,-190.12196257,0.0003953,8]
[421720505,1778059848000,-193.74146285,0.0003953,2]
[421720508,1778059848000,-150.0,0.00039579,2]
[421720510,1778059848000,-4003.0,0.00039589,120]
[421720491,1778059848000,-351.70859363,0.00039456,120]
[421720526,1778059848000,-151.0,0.00039621,30]
[421720528,1778059848000,-151.0,0.00039621,30]
[421720554,1778059848000,-486.250728,0.00039621,30]
[421720560,1778059848000,-231.466786,0.00039621,30]
[421720556,1778059848000,-486.250728,0.00039621,30]
[421720559,1778059848000,-231.466786,0.00039621,30]
[421720557,1778059848000,-231.466786,0.00039621,30]
[421720563,1778059848000,-1775.166357,0.00039621,28]
[421720562,1778059848000,-1775.166357,0.00039621,28]
[421720569,1778059848000,-162.383069,0.00039621,30]
[421720558,1778059848000,-231.466786,0.00039621,30]
[421720564,1778059848000,-1775.166357,0.00039621,28]
[421720566,1778059848000,-958.891654,0.00039621,30]
[421720534,1778059848000,-341.593282,0.00039621,7]
[421720570,1778059848000,-595997.87315956,0.00039621,30]
[421720567,1778059848000,-958.891654,0.00039621,30]
[421720571,1778059848000,-339.87466735,0.000239,2]
[421720572,1778059848000,-4377.34902719,0.000239,2]
[421720573,1778059848000,-1458.69864089,0.00029749,2]
[421720574,1778059848000,-3502.53855489,0.00030311,2]
[421720565,1778059848000,-958.891654,0.00039621,30]
[421720555,1778059848000,-223.442277,0.00039621,30]
[421720568,1778059848000,-958.891654,0.00039621,30]
[421720553,1778059848000,-223.442277,0.00039621,30]
[421720552,1778059848000,-978.68899,0.00039621,30]
[421720529,1778059848000,-151.0,0.00039621,30]
[421720532,1778059848000,-151.0,0.00039621,30]
[421720531,1778059848000,-151.0,0.00039621,30]
[421720530,1778059848000,-151.0,0.00039621,30]
[421720527,1778059848000,-151.0,0.00039621,30]
[421720538,1778059848000,-1135.869414,0.00039621,30]
[421720541,1778059848000,-1135.869414,0.00039621,30]
[421720540,1778059848000,-1135.869414,0.00039621,30]
[421720546,1778059848000,-486.250728,0.00039621,30]
[421720545,1778059848000,-978.68899,0.00039621,30]